fUST/lending_fUST_20250522
["ID","MTS","AMOUNT","RATE_DAILY","PERIOD"]
[361930006,1747896642797,-430.0,0.00022191,2]
[361930007,1747896642808,-430.0,0.00022191,2]
[361930008,1747896642818,-430.0,0.00022191,2]
[361930009,1747896642828,-1681.78,0.00022191,2]
[361930010,1747896642838,-430.0,0.00022191,2]
[361930011,1747896642848,-430.0,0.00022191,2]
[361930012,1747896642858,-430.0,0.00022191,2]
[361930013,1747896642868,-430.0,0.00022191,2]
[361930014,1747896642879,-334.96,0.00022191,2]
[361930015,1747896642889,-430.0,0.00022191,2]
[361930016,1747896642899,-430.0,0.00022191,2]
[361930017,1747896642909,-250.16,0.00022191,2]
[361930018,1747896642918,-305.82518055,0.00022191,2]
[361930019,1747896642930,-344.92622124,0.00022191,2]
[361930020,1747896642941,-430.0,0.00022191,2]
[361930021,1747896642952,-1820.83,0.00022191,2]
[361930022,1747896642962,-430.0,0.00022191,2]
[361930023,1747896642975,-430.0,0.00022191,2]
[361930024,1747896642984,-430.0,0.00022191,2]
[361930025,1747896642994,-430.0,0.00022191,2]
[361930026,1747896643005,-430.0,0.00022191,2]
[361930027,1747896643015,-430.0,0.00022191,2]
[361930028,1747896643025,-430.0,0.00022191,2]
[361930029,1747896643035,-430.0,0.00022191,2]
[361930030,1747896643045,-430.0,0.00022191,2]
[361930031,1747896643056,-516.88429869,0.00022191,2]
[361930032,1747896643066,-430.0,0.00022191,2]
[361930033,1747896643076,-430.0,0.00022191,2]
[361930034,1747896643092,-658.95,0.00022191,2]
[361930035,1747896643102,-430.0,0.00022191,2]
[361930036,1747896643113,-430.0,0.00022191,2]
[361930037,1747896643123,-430.0,0.00022191,2]
[361930038,1747896643132,-430.0,0.00022191,2]
[361930039,1747896643143,-430.0,0.00022191,2]
[361930040,1747896643153,-430.0,0.00022191,2]
[361930041,1747896643164,-430.0,0.00022191,2]
[361930042,1747896643174,-430.0,0.00022191,2]
[361930043,1747896643184,-430.0,0.00022191,2]
[361930044,1747896643194,-649.69,0.00022191,2]
[361930045,1747896643204,-430.0,0.00022191,2]
[361930046,1747896643214,-430.0,0.00022191,2]
[361930047,1747896643224,-430.0,0.00022191,2]
[361930048,1747896643235,-9917.18950382,0.00022365,3]
[361930049,1747896643245,-999.76622779,0.00022365,2]
[361930050,1747896643256,-500.0,0.00022377,2]
[361930051,1747896643266,-500.0,0.00022377,2]
[361930052,1747896643276,-500.0,0.00022377,2]
[361930053,1747896643287,-500.0,0.00022377,2]
[361930054,1747896643296,-501.4671825,0.00022405,2]
[361930055,1747896643306,-216.01084162,0.00022405,2]
[361930056,1747896643316,-268.30906159,0.00022408,2]
[361930057,1747896643327,-500.0,0.00022432,2]
[361930058,1747896643337,-500.0,0.00022432,2]
[361930059,1747896643347,-500.0,0.00022432,2]
[361930060,1747896643359,-500.0,0.00022447,2]
[361930061,1747896643369,-431.88632832,0.00022447,2]
[361930062,1747896643379,-347.03,0.00022465,2]
[361930063,1747896643389,-279.23,0.00022465,2]
[361930064,1747896643400,-430.0,0.00022465,2]
[361930065,1747896643410,-430.0,0.00022465,2]
[361930066,1747896643421,-430.0,0.00022465,2]
[361930067,1747896643432,-227.14,0.00022465,2]
[361930068,1747896643442,-430.0,0.00022465,2]
[361930069,1747896643452,-430.0,0.00022465,2]
[361930070,1747896643464,-430.0,0.00022465,2]
[361930071,1747896643475,-430.0,0.00022465,2]
[361930072,1747896643485,-430.0,0.00022465,2]
[361930073,1747896643495,-430.0,0.00022465,2]
[361930074,1747896643507,-430.0,0.00022465,2]
[361930075,1747896643517,-506.66,0.00022465,2]
[361930076,1747896643527,-438.94,0.00022465,2]
[361930077,1747896643537,-430.0,0.00022465,2]
[361930078,1747896643548,-430.0,0.00022465,2]
[361930079,1747896643558,-430.0,0.00022465,2]
[361930080,1747896643568,-430.0,0.00022465,2]
[361930081,1747896643579,-430.0,0.00022465,2]
[361930082,1747896643589,-207.95,0.00022465,2]
[361930083,1747896643600,-430.0,0.00022465,2]
[361930084,1747896643610,-430.0,0.00022465,2]
[361930085,1747896643620,-430.0,0.00022465,2]
[361930086,1747896643631,-236.46398,0.00022465,2]
[361930087,1747896643642,-430.0,0.00022465,2]
[361930088,1747896643652,-430.0,0.00022465,2]
[361930089,1747896643662,-430.0,0.00022465,2]
[361930090,1747896643672,-430.0,0.00022465,2]
[361930091,1747896643683,-430.0,0.00022465,2]
[361930092,1747896643693,-927.45,0.00022465,2]
[361930093,1747896643703,-430.0,0.00022465,2]
[361930094,1747896643715,-446.02,0.00022465,2]
[361930095,1747896643725,-269.65,0.00022465,2]
[361930096,1747896643735,-430.0,0.00022465,2]
[361930097,1747896643744,-430.0,0.00022465,2]
[361930098,1747896643754,-430.0,0.00022465,2]
[361930099,1747896643764,-430.0,0.00022465,2]
[361930100,1747896643774,-430.0,0.00022465,2]
[361930101,1747896643784,-367.76,0.00022465,2]
[361930102,1747896643793,-241.48126232,0.00022465,2]
[361930103,1747896643804,-426.73,0.00022465,2]
[361930104,1747896643814,-430.0,0.00022465,2]
[361930105,1747896643824,-805.2,0.00022465,2]
[361930106,1747896643836,-1207.8,0.00022465,2]
[361930107,1747896643846,-430.0,0.00022465,2]
[361930108,1747896643856,-430.0,0.00022465,2]
[361930109,1747896643867,-618.02,0.00022465,2]
[361930110,1747896643877,-430.0,0.00022465,2]
[361930111,1747896643889,-430.0,0.00022465,2]
[361930112,1747896643899,-430.0,0.00022465,2]
[361930113,1747896643909,-430.0,0.00022465,2]
[361930114,1747896643919,-430.0,0.00022465,2]
[361930115,1747896643931,-430.0,0.00022465,2]
[361930116,1747896643945,-430.0,0.00022465,2]
[361930117,1747896643960,-430.0,0.00022465,2]
[361930118,1747896643973,-531.27,0.00022465,2]
[361930119,1747896643987,-430.0,0.00022465,2]
[361930120,1747896643998,-430.0,0.00022465,2]
[361930121,1747896644009,-430.0,0.00022465,2]
[361930122,1747896644019,-1681.78,0.00022465,2]
[361930123,1747896644028,-430.0,0.00022465,2]
[361930124,1747896644038,-225.52,0.00022465,2]
[361930125,1747896644048,-430.0,0.00022465,2]
[361930126,1747896644058,-430.0,0.00022465,2]
[361930127,1747896644069,-430.0,0.00022465,2]
[361930128,1747896644079,-430.0,0.00022465,2]
[361930129,1747896644090,-430.0,0.00022465,2]
[361930130,1747896644099,-1820.83,0.00022465,2]
[361930131,1747896644109,-430.0,0.00022465,2]
[361930132,1747896644120,-378.62557176,0.00022465,2]
[361930133,1747896644130,-430.0,0.00022465,2]
[361930134,1747896644142,-430.0,0.00022465,2]
[361930136,1747896644152,-430.0,0.00022465,2]
[361930137,1747896644306,-430.0,0.00022465,2]
[361930138,1747896644316,-430.0,0.00022465,2]
[361930139,1747896644327,-430.0,0.00022465,2]
[361930140,1747896644337,-430.0,0.00022465,2]
[361930141,1747896644347,-390.79,0.00022465,2]
[361930142,1747896644356,-279.98,0.00022465,2]
[361930143,1747896644366,-658.95,0.00022465,2]
[361930144,1747896644376,-430.0,0.00022465,2]
[361930145,1747896644387,-430.0,0.00022465,2]
[361930147,1747896644397,-430.0,0.00022465,2]
[361930148,1747896644407,-430.0,0.00022465,2]
[361930149,1747896644417,-430.0,0.00022465,2]
[361930150,1747896644427,-430.0,0.00022465,2]
[361930152,1747896644437,-430.0,0.00022465,2]
[361930154,1747896644447,-430.0,0.00022465,2]
[361930155,1747896644456,-430.0,0.00022465,2]
[361930156,1747896644466,-649.69,0.00022465,2]
[361930157,1747896644476,-430.0,0.00022465,2]
[361930158,1747896644486,-430.0,0.00022465,2]
[361930159,1747896644496,-430.0,0.00022465,2]
[361930160,1747896644506,-500.0,0.00022476,2]
[361930161,1747896644516,-500.0,0.00022476,2]
[361930162,1747896644527,-500.0,0.00022491,2]
[361930163,1747896644537,-500.0,0.00022491,2]
[361930164,1747896644547,-500.0,0.00022503,2]
[361930165,1747896644557,-500.0,0.00022503,2]
[361930166,1747896644581,-500.0,0.00022503,2]
[361930168,1747896644593,-500.0,0.00022503,2]
[361930169,1747896644604,-500.0,0.00022503,2]
[361930170,1747896644616,-223.83421328,0.00022503,2]
[361930171,1747896644627,-502.79396182,0.00022503,2]
[361930172,1747896644638,-500.0,0.00022503,2]
[361930173,1747896644649,-500.0,0.00022503,2]
[361930174,1747896644660,-500.0,0.00022503,2]
[361930175,1747896644671,-500.0,0.00022503,2]
[361930176,1747896644683,-501.46384605,0.00022503,2]
[361930177,1747896644695,-500.0,0.00022503,2]
[361930178,1747896644706,-500.0,0.00022503,2]
[361930179,1747896644717,-501.1616997,0.00022503,2]
[361930181,1747896644728,-477.85468765,0.00022555,2]
[361930183,1747896644739,-500.0,0.00022555,2]
[361930185,1747896644749,-270.23043266,0.00022555,2]
[361930188,1747896644760,-500.0,0.00022555,2]
[361930190,1747896644771,-253.58874111,0.00022555,2]
[361930192,1747896644781,-500.0,0.00022555,2]
[361930194,1747896644792,-500.0,0.00022555,2]
[361930196,1747896644803,-410.84989584,0.00022555,2]
[361930198,1747896644813,-500.0,0.00022555,2]
[361930200,1747896644823,-500.0,0.00022555,2]
[361930202,1747896644834,-343.63812651,0.00022555,2]
[361930204,1747896644844,-500.0,0.00022559,2]
[361930206,1747896644854,-422.78357425,0.00022638,2]
[361930208,1747896644865,-160.0,0.00022638,2]
[361930210,1747896644876,-160.0,0.00022638,2]
[361930212,1747896644886,-12645.25887003,0.00022638,2]
[361930214,1747896644896,-894.64583333,0.00022638,2]
[361930216,1747896644907,-212.4501065,0.00022639,2]
[361930217,1747896644917,-430.0,0.00022739,2]
[361930218,1747896644927,-537.81,0.00022739,2]
[361930219,1747896644937,-430.0,0.00022739,2]
[361930220,1747896644948,-430.0,0.00022739,2]
[361930221,1747896644959,-430.0,0.00022739,2]
[361930222,1747896644970,-430.0,0.00022739,2]
[361930223,1747896644983,-430.0,0.00022739,2]
[361930224,1747896644994,-430.0,0.00022739,2]
[361930225,1747896645004,-506.66,0.00022739,2]
[361930226,1747896645014,-438.94,0.00022739,2]
[361930227,1747896645026,-430.0,0.00022739,2]
[361930228,1747896645037,-245.47,0.00022739,2]
[361930229,1747896645047,-430.0,0.00022739,2]
[361930230,1747896645057,-430.0,0.00022739,2]
[361930231,1747896645068,-228.22,0.00022739,2]
[361930232,1747896645078,-430.0,0.00022739,2]
[361930233,1747896645087,-362.11,0.00022739,2]
[361930234,1747896645097,-430.0,0.00022739,2]
[361930235,1747896645107,-430.0,0.00022739,2]
[361930236,1747896645117,-430.0,0.00022739,2]
[361930237,1747896645127,-430.0,0.00022739,2]
[361930238,1747896645136,-927.45,0.00022739,2]
[361930239,1747896645146,-430.0,0.00022739,2]
[361930240,1747896645155,-446.02,0.00022739,2]
[361930241,1747896645165,-430.0,0.00022739,2]
[361930242,1747896645175,-430.0,0.00022739,2]
[361930243,1747896645185,-430.0,0.00022739,2]
[361930244,1747896645195,-430.0,0.00022739,2]
[361930245,1747896645205,-430.0,0.00022739,2]
[361930246,1747896645215,-430.0,0.00022739,2]
[361930247,1747896645224,-805.2,0.00022739,2]
[361930248,1747896645234,-1207.8,0.00022739,2]
[361930249,1747896645244,-430.0,0.00022739,2]
[361930250,1747896645254,-430.0,0.00022739,2]
[361930251,1747896645264,-618.02,0.00022739,2]
[361930252,1747896645274,-430.0,0.00022739,2]
[361930253,1747896645284,-430.0,0.00022739,2]
[361930254,1747896645293,-430.0,0.00022739,2]
[361930255,1747896645307,-430.0,0.00022739,2]
[361930256,1747896645317,-430.0,0.00022739,2]
[361930257,1747896645327,-381.84231023,0.00022739,2]
[361930258,1747896645337,-430.0,0.00022739,2]
[361930259,1747896645348,-430.0,0.00022739,2]
[361930260,1747896645360,-430.0,0.00022739,2]
[361930261,1747896645370,-430.0,0.00022739,2]
[361930262,1747896645380,-430.0,0.00022739,2]
[361930263,1747896645390,-1681.78,0.00022739,2]
[361930264,1747896645400,-204.36,0.00022739,2]
[361930265,1747896645411,-430.0,0.00022739,2]
[361930266,1747896645421,-430.0,0.00022739,2]
[361930267,1747896645431,-430.0,0.00022739,2]
[361930268,1747896645440,-550.88,0.00022739,2]
[361930269,1747896645450,-1820.83,0.00022739,2]
[361930270,1747896645459,-430.0,0.00022739,2]
[361930271,1747896645469,-430.0,0.00022739,2]
[361930272,1747896645479,-571.97,0.00022739,2]
[361930273,1747896645488,-430.0,0.00022739,2]
[361930274,1747896645499,-430.0,0.00022739,2]
[361930275,1747896645509,-452.41,0.00022739,2]
[361930276,1747896645519,-430.0,0.00022739,2]
[361930277,1747896645529,-160.33,0.00022739,2]
[361930278,1747896645538,-658.95,0.00022739,2]
[361930279,1747896645548,-430.0,0.00022739,2]
[361930280,1747896645558,-430.0,0.00022739,2]
[361930281,1747896645568,-430.0,0.00022739,2]
[361930282,1747896645577,-430.0,0.00022739,2]
[361930283,1747896645587,-430.0,0.00022739,2]
[361930284,1747896645597,-430.0,0.00022739,2]
[361930285,1747896645606,-430.0,0.00022739,2]
[361930286,1747896645616,-356.82904902,0.00022739,2]
[361930287,1747896645625,-430.0,0.00022739,2]
[361930288,1747896645635,-649.69,0.00022739,2]
[361930289,1747896645645,-430.0,0.00022739,2]
[361930290,1747896645654,-430.0,0.00022739,2]
[361930291,1747896645664,-430.0,0.00022739,2]
[361930292,1747896645673,-999.76622778,0.00022749,2]
[361930293,1747896645683,-2241.07170731,0.000229,8]
[361930294,1747896645693,-151.0,0.00022915,2]
[361930295,1747896645704,-152.67002143,0.00022915,2]
[361930296,1747896645713,-207.4,0.00022915,2]
[361930297,1747896645723,-500.69058986,0.00022925,2]
[361930298,1747896645733,-506.26787814,0.0002298,2]
[361930299,1747896645743,-1000.0,0.0002298,2]
[361930300,1747896645753,-1000.0,0.0002298,2]
[361930301,1747896645762,-430.0,0.00023013,2]
[361930302,1747896645772,-430.0,0.00023013,2]
[361930303,1747896645782,-430.0,0.00023013,2]
[361930304,1747896645791,-430.0,0.00023013,2]
[361930305,1747896645801,-430.0,0.00023013,2]
[361930307,1747896645811,-361.77404005,0.00023013,2]
[361930309,1747896645822,-430.0,0.00023013,2]
[361930310,1747896645833,-506.66,0.00023013,2]
[361930311,1747896645843,-438.94,0.00023013,2]
[361930312,1747896645852,-430.0,0.00023013,2]
[361930313,1747896645863,-430.0,0.00023013,2]
[361930314,1747896645872,-430.0,0.00023013,2]
[361930315,1747896645883,-430.0,0.00023013,2]
[361930316,1747896645893,-430.0,0.00023013,2]
[361930317,1747896645903,-430.0,0.00023013,2]
[361930318,1747896645913,-430.0,0.00023013,2]
[361930319,1747896645924,-430.0,0.00023013,2]
[361930320,1747896645934,-927.45,0.00023013,2]
[361930321,1747896645944,-430.0,0.00023013,2]
[361930322,1747896645956,-446.02,0.00023013,2]
[361930324,1747896645966,-430.0,0.00023013,2]
[361930325,1747896645981,-430.0,0.00023013,2]
[361930326,1747896645991,-430.0,0.00023013,2]
[361930327,1747896646001,-430.0,0.00023013,2]
[361930328,1747896646011,-430.0,0.00023013,2]
[361930329,1747896646023,-430.0,0.00023013,2]
[361930330,1747896646032,-805.2,0.00023013,2]
[361930332,1747896646042,-1207.8,0.00023013,2]
[361930334,1747896646053,-430.0,0.00023013,2]
[361930335,1747896646064,-430.0,0.00023013,2]
[361930336,1747896646075,-618.02,0.00023013,2]
[361930337,1747896646085,-430.0,0.00023013,2]
[361930338,1747896646095,-430.0,0.00023013,2]
[361930339,1747896646105,-430.0,0.00023013,2]
[361930340,1747896646115,-430.0,0.00023013,2]
[361930341,1747896646126,-430.0,0.00023013,2]
[361930342,1747896646136,-430.0,0.00023013,2]
[361930343,1747896646147,-328.13,0.00023013,2]
[361930344,1747896646158,-430.0,0.00023013,2]
[361930345,1747896646168,-430.0,0.00023013,2]
[361930346,1747896646177,-1681.78,0.00023013,2]
[361930347,1747896646187,-430.0,0.00023013,2]
[361930348,1747896646197,-430.0,0.00023013,2]
[361930349,1747896646207,-430.0,0.00023013,2]
[361930350,1747896646216,-1820.83,0.00023013,2]
[361930351,1747896646226,-324.78,0.00023013,2]
[361930352,1747896646236,-430.0,0.00023013,2]
[361930353,1747896646287,-430.0,0.00023013,2]
[361930354,1747896646298,-430.0,0.00023013,2]
[361930355,1747896646309,-430.0,0.00023013,2]
[361930356,1747896646320,-658.95,0.00023013,2]
[361930357,1747896646330,-349.38,0.00023013,2]
[361930358,1747896646340,-430.0,0.00023013,2]
[361930359,1747896646349,-430.0,0.00023013,2]
[361930360,1747896646361,-430.0,0.00023013,2]
[361930361,1747896646372,-430.0,0.00023013,2]
[361930362,1747896646382,-430.0,0.00023013,2]
[361930363,1747896646391,-430.0,0.00023013,2]
[361930364,1747896646401,-430.0,0.00023013,2]
[361930365,1747896646411,-649.69,0.00023013,2]
[361930366,1747896646421,-430.0,0.00023013,2]
[361930367,1747896646431,-430.0,0.00023013,2]
[361930368,1747896646441,-430.0,0.00023013,2]
[361930369,1747896646451,-1000.0,0.00023024,2]
[361930370,1747896646462,-503.53593631,0.00023024,2]
[361930371,1747896646471,-2241.0717071,0.00023038,8]
[361930372,1747896646482,-1000.0,0.00023051,2]
[361930373,1747896646492,-1017.91697295,0.00023051,2]
[361930374,1747896646502,-500.55966303,0.00023051,2]
[361930375,1747896646512,-1002.95954698,0.00023051,2]
[361930376,1747896646522,-1000.0,0.00023051,2]
[361930378,1747896646531,-396.86737968,0.00023051,2]
[361930379,1747896646541,-1000.0,0.00023051,2]
[361930380,1747896646551,-1000.0,0.00023051,2]
[361930381,1747896646562,-1001.15011034,0.00023103,2]
[361930382,1747896646571,-1000.98860371,0.00023103,2]
[361930384,1747896646582,-500.5047315,0.00023103,2]
[361930385,1747896646592,-563.04989174,0.00023103,2]
[361930386,1747896646601,-1007.27790022,0.00023103,2]
[361930387,1747896646611,-1000.8704939,0.00023103,2]
[361930388,1747896646621,-638.47611382,0.00023111,2]
[361930389,1747896646631,-999.76622778,0.00023133,2]
[361930390,1747896646641,-2241.0717071,0.00023176,8]
[361930391,1747896646652,-5000.0,0.00023235,2]
[361930392,1747896646662,-798.39,0.00023285,11]
[361930393,1747896646672,-294.712434,0.00023287,2]
[361930394,1747896646681,-294.712434,0.00023287,2]
[361930395,1747896646691,-151.0,0.00023287,7]
[361930396,1747896646701,-151.0,0.00023287,7]
[361930397,1747896646710,-151.0,0.00023287,7]
[361930398,1747896646719,-430.0,0.00023287,2]
[361930399,1747896646729,-430.0,0.00023287,2]
[361930400,1747896646739,-430.0,0.00023287,2]
[361930401,1747896646748,-430.0,0.00023287,2]
[361930402,1747896646757,-445.3111377,0.00023287,2]
[361930403,1747896646766,-430.0,0.00023287,2]
[361930404,1747896646776,-506.66,0.00023287,2]
[361930405,1747896646785,-438.94,0.00023287,2]
[361930406,1747896646795,-449.0200449,0.00023287,2]
[361930407,1747896646804,-430.0,0.00023287,2]
[361930408,1747896646813,-430.0,0.00023287,2]
[361930409,1747896646823,-430.0,0.00023287,2]
[361930410,1747896646833,-4642.57,0.00023287,2]
[361930411,1747896646842,-430.0,0.00023287,2]
[361930412,1747896646852,-430.0,0.00023287,2]
[361930413,1747896646861,-430.0,0.00023287,2]
[361930414,1747896646871,-430.0,0.00023287,2]
[361930415,1747896646881,-927.45,0.00023287,2]
[361930416,1747896646890,-430.0,0.00023287,2]
[361930417,1747896646900,-446.02,0.00023287,2]
[361930418,1747896646909,-218.16,0.00023287,2]
[361930419,1747896646919,-430.0,0.00023287,2]
[361930420,1747896646928,-430.0,0.00023287,2]
[361930421,1747896646938,-430.0,0.00023287,2]
[361930422,1747896646948,-430.0,0.00023287,2]
[361930423,1747896646964,-430.0,0.00023287,2]
[361930424,1747896646978,-805.2,0.00023287,2]
[361930425,1747896646988,-1207.8,0.00023287,2]
[361930426,1747896646997,-430.0,0.00023287,2]
[361930427,1747896647007,-430.0,0.00023287,2]
[361930428,1747896647019,-618.02,0.00023287,2]
[361930429,1747896647028,-430.0,0.00023287,2]
[361930430,1747896647038,-430.0,0.00023287,2]
[361930431,1747896647048,-430.0,0.00023287,2]
[361930432,1747896647058,-430.0,0.00023287,2]
[361930433,1747896647067,-277.76,0.00023287,2]
[361930434,1747896647076,-430.0,0.00023287,2]
[361930435,1747896647087,-430.0,0.00023287,2]
[361930436,1747896647096,-430.0,0.00023287,2]
[361930437,1747896647106,-1681.78,0.00023287,2]
[361930438,1747896647115,-430.0,0.00023287,2]
[361930439,1747896647125,-430.0,0.00023287,2]
[361930440,1747896647136,-430.0,0.00023287,2]
[361930441,1747896647145,-1820.83,0.00023287,2]
[361930442,1747896647155,-430.0,0.00023287,2]
[361930443,1747896647165,-430.0,0.00023287,2]
[361930444,1747896647175,-430.0,0.00023287,2]
[361930445,1747896647186,-536.31,0.00023287,2]
[361930446,1747896647196,-658.95,0.00023287,2]
[361930447,1747896647206,-430.0,0.00023287,2]
[361930448,1747896647216,-430.0,0.00023287,2]
[361930449,1747896647226,-430.0,0.00023287,2]
[361930450,1747896647235,-430.0,0.00023287,2]
[361930451,1747896647245,-430.0,0.00023287,2]
[361930452,1747896647256,-430.0,0.00023287,2]
[361930453,1747896647266,-430.0,0.00023287,2]
[361930454,1747896647276,-649.69,0.00023287,2]
[361930455,1747896647285,-430.0,0.00023287,2]
[361930456,1747896647295,-430.0,0.00023287,2]
[361930457,1747896647305,-430.0,0.00023287,2]
[361930458,1747896647315,-2241.0717071,0.00023314,9]
[361930459,1747896647324,-2241.0717071,0.00023452,9]
[361930460,1747896647334,-999.76622778,0.00023516,2]
[361930461,1747896647344,-1640.67206,0.0002352,2]
[361930462,1747896647354,-520.18265364,0.00023528,2]
[361930463,1747896647363,-521.66822977,0.00023528,2]
[361930464,1747896647373,-638.47611382,0.00023538,2]
[361930465,1747896647383,-430.0,0.00023561,2]
[361930466,1747896647393,-430.0,0.00023561,2]
[361930467,1747896647402,-235.8,0.00023561,2]
[361930468,1747896647412,-430.0,0.00023561,2]
[361930469,1747896647422,-332.8,0.00023561,2]
[361930470,1747896647432,-506.66,0.00023561,2]
[361930471,1747896647442,-438.94,0.00023561,2]
[361930472,1747896647452,-420.82,0.00023561,2]
[361930473,1747896647461,-506.91,0.00023561,2]
[361930474,1747896647471,-430.0,0.00023561,2]
[361930475,1747896647481,-477.74000003,0.00023561,2]
[361930476,1747896647491,-430.0,0.00023561,2]
[361930477,1747896647501,-430.0,0.00023561,2]
[361930478,1747896647512,-197.03,0.00023561,2]
[361930479,1747896647522,-927.45,0.00023561,2]
[361930480,1747896647532,-430.0,0.00023561,2]
[361930481,1747896647543,-446.02,0.00023561,2]
[361930482,1747896647553,-430.0,0.00023561,2]
[361930483,1747896647563,-430.0,0.00023561,2]
[361930484,1747896647574,-430.0,0.00023561,2]
[361930485,1747896647586,-430.0,0.00023561,2]
[361930486,1747896647596,-512.3,0.00023561,2]
[361930487,1747896647607,-805.2,0.00023561,2]
[361930488,1747896647617,-1207.8,0.00023561,2]
[361930489,1747896647628,-430.0,0.00023561,2]
[361930490,1747896647638,-430.0,0.00023561,2]
[361930491,1747896647648,-618.02,0.00023561,2]
[361930492,1747896647658,-430.0,0.00023561,2]
[361930493,1747896647668,-430.0,0.00023561,2]
[361930494,1747896647679,-430.0,0.00023561,2]
[361930495,1747896647689,-430.0,0.00023561,2]
[361930496,1747896647699,-430.0,0.00023561,2]
[361930497,1747896647709,-430.0,0.00023561,2]
[361930498,1747896647719,-430.0,0.00023561,2]
[361930499,1747896647729,-1681.78,0.00023561,2]
[361930500,1747896647739,-430.0,0.00023561,2]
[361930501,1747896647749,-430.0,0.00023561,2]
[361930502,1747896647759,-430.0,0.00023561,2]
[361930503,1747896647769,-1820.83,0.00023561,2]
[361930504,1747896647778,-430.0,0.00023561,2]
[361930505,1747896647788,-430.0,0.00023561,2]
[361930506,1747896647798,-658.95,0.00023561,2]
[361930507,1747896647809,-430.0,0.00023561,2]
[361930508,1747896647820,-430.0,0.00023561,2]
[361930509,1747896647830,-430.0,0.00023561,2]
[361930510,1747896647840,-430.0,0.00023561,2]
[361930511,1747896647851,-430.0,0.00023561,2]
[361930512,1747896647862,-430.0,0.00023561,2]
[361930513,1747896647873,-430.0,0.00023561,2]
[361930514,1747896647883,-649.69,0.00023561,2]
[361930515,1747896647894,-430.0,0.00023561,2]
[361930516,1747896647904,-181.82,0.00023561,2]
[361930517,1747896647915,-430.0,0.00023561,2]
[361930518,1747896647926,-1000.0,0.00023572,2]
[361930519,1747896647936,-2241.0717071,0.0002359,9]
[361930520,1747896647946,-1100.86526598,0.00023599,2]
[361930521,1747896647956,-1009.79337201,0.00023599,2]
[361930522,1747896647967,-1516.58093353,0.00023599,2]
[361930523,1747896647983,-1500.0,0.00023599,2]
[361930524,1747896647993,-420.0,0.00023706,2]
[361930525,1747896648004,-2241.0717071,0.00023728,9]
[361930526,1747896648014,-294.712434,0.0002376,2]
[361930527,1747896648025,-294.712434,0.0002376,2]
[361930528,1747896648034,-151.0,0.0002376,7]
[361930529,1747896648044,-151.0,0.0002376,7]
[361930530,1747896648055,-39331.27357793,0.0002376,2]
[361930531,1747896648227,-2759.23893936,0.0002376,2]
[361930532,1747896649550,-40.38255076,0.0002376,2]
[361930533,1747896649609,-17.86033955,0.0002376,2]
[361930534,1747897091616,164.762197,0.00013699,2]
[361930540,1747897231511,-5000.0,0.00020246,2]
[361930541,1747897231534,-218.77684,0.00020299,2]